fUST/lending_fUST_20250624
["ID","MTS","AMOUNT","RATE_DAILY","PERIOD"]
[367337659,1750755064821,-460.0,0.00021095,2]
[367337660,1750755064830,-460.0,0.00021095,2]
[367337661,1750755064840,-460.0,0.00021095,2]
[367337662,1750755064849,-460.0,0.00021095,2]
[367337663,1750755064858,-460.0,0.00021095,2]
[367337664,1750755064867,-3108.84,0.00021095,2]
[367337665,1750755064876,-1043.22,0.00021095,2]
[367337666,1750755064886,-2718.8,0.00021095,2]
[367337667,1750755064895,-460.0,0.00021095,2]
[367337668,1750755064903,-2297.74,0.00021095,2]
[367337669,1750755064913,-460.0,0.00021095,2]
[367337670,1750755064923,-472.84,0.00021095,2]
[367337671,1750755064932,-686.97,0.00021095,2]
[367337672,1750755064941,-460.0,0.00021095,2]
[367337673,1750755064951,-460.0,0.00021095,2]
[367337674,1750755064960,-460.0,0.00021095,2]
[367337675,1750755064969,-1034.53,0.00021095,2]
[367337676,1750755064978,-460.0,0.00021095,2]
[367337677,1750755064987,-460.0,0.00021095,2]
[367337678,1750755064997,-4423.11,0.00021095,2]
[367337679,1750755065007,-460.0,0.00021095,2]
[367337680,1750755065017,-460.0,0.00021095,2]
[367337681,1750755065026,-498.87,0.00021095,2]
[367337682,1750755065035,-460.0,0.00021095,2]
[367337683,1750755065045,-1356.23,0.00021095,2]
[367337684,1750755065054,-564.81,0.00021095,2]
[367337685,1750755065063,-1527.77,0.00021095,2]
[367337686,1750755065072,-460.0,0.00021095,2]
[367337687,1750755065083,-917.06,0.00021095,2]
[367337688,1750755065093,-561.68,0.00021095,2]
[367337689,1750755065103,-460.0,0.00021095,2]
[367337690,1750755065112,-556.13,0.00021095,2]
[367337691,1750755065121,-460.0,0.00021095,2]
[367337692,1750755065131,-1891.95,0.00021095,2]
[367337693,1750755065140,-460.0,0.00021095,2]
[367337694,1750755065150,-1048.02,0.00021095,2]
[367337695,1750755065159,-1140.59,0.00021095,2]
[367337696,1750755065169,-609.41,0.00021095,2]
[367337697,1750755065178,-3302.7,0.00021095,2]
[367337698,1750755065189,-460.0,0.00021095,2]
[367337699,1750755065199,-460.0,0.00021095,2]
[367337700,1750755065208,-1182.78,0.00021095,2]
[367337701,1750755065218,-865.91,0.00021095,2]
[367337702,1750755065229,-2811.91,0.00021095,2]
[367337703,1750755065238,-460.0,0.00021095,2]
[367337704,1750755065247,-460.0,0.00021095,2]
[367337705,1750755065256,-460.0,0.00021095,2]
[367337706,1750755065265,-460.0,0.00021095,2]
[367337707,1750755065275,-468.72,0.00021095,2]
[367337708,1750755065284,-460.0,0.00021095,2]
[367337709,1750755065293,-1078.54,0.00021095,2]
[367337710,1750755065302,-460.0,0.00021095,2]
[367337711,1750755065312,-460.0,0.00021095,2]
[367337712,1750755065321,-1172.06,0.00021095,2]
[367337713,1750755065330,-460.0,0.00021095,2]
[367337714,1750755065339,-936.84,0.00021095,2]
[367337715,1750755065348,-460.0,0.00021095,2]
[367337716,1750755065358,-1147.18,0.00021095,2]
[367337717,1750755065367,-669.18,0.00021095,2]
[367337718,1750755065376,-1364.47,0.00021095,2]
[367337719,1750755065385,-460.0,0.00021095,2]
[367337720,1750755065394,-787.57,0.00021095,2]
[367337721,1750755065405,-3667.8,0.00021095,2]
[367337722,1750755065415,-1283.7,0.00021095,2]
[367337723,1750755065424,-460.0,0.00021095,2]
[367337724,1750755065433,-2790.88,0.00021095,2]
[367337725,1750755065443,-1147.28,0.00021095,2]
[367337726,1750755065453,-229.88661072,0.00021095,2]
[367337727,1750755065462,-827.6,0.00021095,2]
[367337728,1750755065471,-460.0,0.00021095,2]
[367337729,1750755065480,-460.0,0.00021095,2]
[367337730,1750755065489,-1404.87,0.00021095,2]
[367337731,1750755065498,-460.0,0.00021095,2]
[367337732,1750755065508,-567.76,0.00021095,2]
[367337733,1750755065517,-460.0,0.00021095,2]
[367337734,1750755065528,-494.52,0.00021095,2]
[367337735,1750755065538,-665.95,0.00021095,2]
[367337736,1750755065548,-2058.09,0.00021095,2]
[367337737,1750755065558,-151.0,0.000211,3]
[367337738,1750755065567,-2654.37735629,0.00021107,4]
[367337739,1750755065577,-317.0,0.00021114,2]
[367337740,1750755065587,-2000.0,0.00021116,2]
[367337741,1750755065596,-2000.0,0.00021116,2]
[367337742,1750755065606,-2000.0,0.00021116,2]
[367337743,1750755065614,-2000.0,0.00021116,2]
[367337744,1750755065623,-1728.66135921,0.00021116,2]
[367337745,1750755065634,-7737.01787155,0.00021119,2]
[367337746,1750755065643,-1000.0,0.00021121,2]
[367337747,1750755065654,-1000.0,0.00021121,2]
[367337748,1750755065663,-1000.0,0.00021121,2]
[367337749,1750755065673,-1000.0,0.00021121,2]
[367337750,1750755065683,-777.47307896,0.00021121,2]
[367337751,1750755065692,-1000.0,0.00021121,2]
[367337752,1750755065701,-1000.0,0.00021121,2]
[367337753,1750755065710,-1000.0,0.00021121,2]
[367337754,1750755065718,-583.01034748,0.00021121,2]
[367337755,1750755065728,-709.9152899,0.00021121,2]
[367337756,1750755065737,-1000.0,0.00021121,2]
[367337757,1750755065746,-1000.0,0.00021121,2]
[367337758,1750755065756,-1000.0,0.00021121,2]
[367337759,1750755065765,-1000.0,0.00021121,2]
[367337760,1750755065774,-1000.0,0.00021121,2]
[367337761,1750755065783,-508.11003669,0.00021121,2]
[367337762,1750755065792,-1000.0,0.00021121,2]
[367337763,1750755065801,-1000.0,0.00021121,2]
[367337764,1750755065810,-1000.0,0.00021121,2]
[367337765,1750755065819,-1000.0,0.00021121,2]
[367337766,1750755065828,-1000.0,0.00021121,2]
[367337767,1750755065837,-399.602447,0.00021123,2]
[367337768,1750755065846,-600.0,0.00021149,2]
[367337769,1750755065856,-5000.0,0.00021192,2]
[367337770,1750755065865,-160.0,0.00021233,7]
[367337771,1750755065874,-177.67,0.00021333,2]
[367337772,1750755065883,-1672.954,0.00021336,2]
[367337773,1750755065892,-647.2,0.0002134,4]
[367337774,1750755065902,-2654.37735629,0.00021348,5]
[367337775,1750755065911,-1003.12579535,0.00021364,2]
[367337776,1750755065920,-2500.0,0.00021364,2]
[367337777,1750755065930,-702.83,0.00021369,2]
[367337778,1750755065939,-702.83,0.00021369,2]
[367337779,1750755065948,-460.0,0.00021369,2]
[367337780,1750755065957,-460.0,0.00021369,2]
[367337781,1750755065966,-151.0,0.00021369,2]
[367337782,1750755065975,-460.0,0.00021369,2]
[367337783,1750755065985,-151.0,0.00021369,2]
[367337784,1750755065994,-460.0,0.00021369,2]
[367337785,1750755066003,-151.0,0.00021369,2]
[367337786,1750755066135,-460.0,0.00021369,2]
[367337787,1750755066150,-460.0,0.00021369,2]
[367337788,1750755066160,-550.94072945,0.00021369,2]
[367337789,1750755066169,-460.0,0.00021369,2]
[367337790,1750755066178,-285.44,0.00021369,2]
[367337791,1750755066187,-460.0,0.00021369,2]
[367337792,1750755066197,-525.25,0.00021369,2]
[367337793,1750755066207,-460.0,0.00021369,2]
[367337794,1750755066217,-460.0,0.00021369,2]
[367337795,1750755066226,-202.65814559,0.00021369,2]
[367337796,1750755066235,-589.59,0.00021369,2]
[367337797,1750755066244,-639.86,0.00021369,17]
[367337798,1750755066257,-1033.48,0.00021369,2]
[367337799,1750755066266,-460.0,0.00021369,2]
[367337800,1750755066275,-701.42,0.00021369,2]
[367337801,1750755066285,-460.0,0.00021369,2]
[367337802,1750755066294,-1859.83,0.00021369,2]
[367337803,1750755066303,-460.0,0.00021369,2]
[367337804,1750755066312,-460.0,0.00021369,2]
[367337805,1750755066322,-460.0,0.00021369,2]
[367337806,1750755066331,-460.0,0.00021369,2]
[367337807,1750755066339,-460.0,0.00021369,2]
[367337808,1750755066349,-460.0,0.00021369,2]
[367337809,1750755066358,-460.0,0.00021369,2]
[367337810,1750755066367,-460.0,0.00021369,2]
[367337811,1750755066377,-460.0,0.00021369,2]
[367337812,1750755066387,-486.33807008,0.00021369,2]
[367337813,1750755066396,-460.0,0.00021369,2]
[367337814,1750755066405,-212.1207302,0.00021369,2]
[367337815,1750755066414,-460.0,0.00021369,2]
[367337816,1750755066423,-460.0,0.00021369,2]
[367337817,1750755066432,-837.07,0.00021369,2]
[367337818,1750755066441,-1145.59,0.00021369,2]
[367337819,1750755066450,-460.0,0.00021369,2]
[367337820,1750755066459,-460.0,0.00021369,2]
[367337821,1750755066469,-460.0,0.00021369,2]
[367337822,1750755066479,-460.0,0.00021369,2]
[367337823,1750755066488,-460.0,0.00021369,2]
[367337824,1750755066497,-460.0,0.00021369,2]
[367337825,1750755066507,-2160.1,0.00021369,2]
[367337826,1750755066516,-460.0,0.00021369,2]
[367337827,1750755066525,-489.15168904,0.00021369,2]
[367337828,1750755066534,-460.0,0.00021369,2]
[367337829,1750755066543,-460.0,0.00021369,2]
[367337830,1750755066552,-460.0,0.00021369,2]
[367337831,1750755066566,-460.0,0.00021369,2]
[367337832,1750755066576,-802.49,0.00021369,2]
[367337833,1750755066585,-3492.25,0.00021369,2]
[367337834,1750755066594,-1711.46,0.00021369,2]
[367337835,1750755066605,-1352.03,0.00021369,2]
[367337836,1750755066614,-1160.85,0.00021369,2]
[367337837,1750755066624,-3802.86,0.00021369,2]
[367337838,1750755066633,-460.0,0.00021369,2]
[367337839,1750755066642,-460.0,0.00021369,2]
[367337840,1750755066652,-460.0,0.00021369,2]
[367337841,1750755066662,-460.0,0.00021369,2]
[367337842,1750755066672,-460.0,0.00021369,2]
[367337843,1750755066681,-512.81,0.00021369,2]
[367337844,1750755066690,-1227.2,0.00021369,2]
[367337845,1750755066699,-460.0,0.00021369,2]
[367337846,1750755066710,-460.0,0.00021369,2]
[367337847,1750755066720,-1558.69,0.00021369,2]
[367337848,1750755066731,-460.0,0.00021369,2]
[367337849,1750755066741,-460.0,0.00021369,2]
[367337850,1750755066750,-890.92,0.00021369,2]
[367337851,1750755066762,-1129.31,0.00021369,2]
[367337852,1750755066771,-460.0,0.00021369,2]
[367337853,1750755066780,-494.14,0.00021369,2]
[367337854,1750755066789,-503.39,0.00021369,2]
[367337855,1750755066799,-3336.33,0.00021369,2]
[367337856,1750755066808,-460.0,0.00021369,2]
[367337857,1750755066818,-460.0,0.00021369,2]
[367337858,1750755066827,-460.0,0.00021369,2]
[367337859,1750755066837,-460.0,0.00021369,2]
[367337860,1750755066846,-3108.84,0.00021369,2]
[367337861,1750755066855,-1043.22,0.00021369,2]
[367337862,1750755066865,-2718.8,0.00021369,2]
[367337863,1750755066874,-460.0,0.00021369,2]
[367337864,1750755066883,-2297.74,0.00021369,2]
[367337865,1750755066893,-460.0,0.00021369,2]
[367337866,1750755066902,-472.84,0.00021369,2]
[367337867,1750755066911,-686.97,0.00021369,2]
[367337868,1750755066922,-460.0,0.00021369,2]
[367337869,1750755066931,-596.46220538,0.00021369,2]
[367337870,1750755066941,-460.0,0.00021369,2]
[367337871,1750755066950,-1034.53,0.00021369,2]
[367337872,1750755066959,-460.0,0.00021369,2]
[367337873,1750755066969,-553.65688001,0.00021369,2]
[367337874,1750755066979,-4423.11,0.00021369,2]
[367337875,1750755066990,-460.0,0.00021369,2]
[367337876,1750755066999,-460.0,0.00021369,2]
[367337877,1750755067009,-498.87,0.00021369,2]
[367337878,1750755067018,-460.0,0.00021369,2]
[367337879,1750755067028,-1356.23,0.00021369,2]
[367337880,1750755067038,-564.81,0.00021369,2]
[367337881,1750755067047,-1527.77,0.00021369,2]
[367337882,1750755067056,-460.0,0.00021369,2]
[367337883,1750755067066,-460.0,0.00021369,2]
[367337884,1750755067075,-917.06,0.00021369,2]
[367337885,1750755067085,-556.13,0.00021369,2]
[367337886,1750755067095,-460.0,0.00021369,2]
[367337887,1750755067105,-1891.95,0.00021369,2]
[367337888,1750755067114,-1048.02,0.00021369,2]
[367337889,1750755067123,-1140.59,0.00021369,2]
[367337890,1750755067132,-609.41,0.00021369,2]
[367337891,1750755067141,-3302.7,0.00021369,2]
[367337892,1750755067151,-460.0,0.00021369,2]
[367337893,1750755067161,-460.0,0.00021369,2]
[367337894,1750755067170,-1182.78,0.00021369,2]
[367337895,1750755067179,-865.91,0.00021369,2]
[367337896,1750755067189,-2811.91,0.00021369,2]
[367337897,1750755067198,-460.0,0.00021369,2]
[367337898,1750755067208,-460.0,0.00021369,2]
[367337899,1750755067218,-460.0,0.00021369,2]
[367337900,1750755067228,-460.0,0.00021369,2]
[367337901,1750755067237,-468.72,0.00021369,2]
[367337902,1750755067247,-460.0,0.00021369,2]
[367337903,1750755067257,-1078.54,0.00021369,2]
[367337904,1750755067266,-460.0,0.00021369,2]
[367337905,1750755067275,-460.0,0.00021369,2]
[367337906,1750755067285,-1172.06,0.00021369,2]
[367337907,1750755067294,-460.0,0.00021369,2]
[367337908,1750755067304,-936.84,0.00021369,2]
[367337909,1750755067313,-460.0,0.00021369,2]
[367337910,1750755067324,-1147.18,0.00021369,2]
[367337911,1750755067334,-669.18,0.00021369,2]
[367337912,1750755067344,-1364.47,0.00021369,2]
[367337913,1750755067354,-460.0,0.00021369,2]
[367337914,1750755067363,-787.57,0.00021369,2]
[367337915,1750755067373,-3667.8,0.00021369,2]
[367337916,1750755067383,-1283.7,0.00021369,2]
[367337917,1750755067392,-250.55274003,0.00021369,2]
[367337918,1750755067402,-2790.88,0.00021369,2]
[367337919,1750755067412,-1147.28,0.00021369,2]
[367337920,1750755067422,-827.6,0.00021369,2]
[367337921,1750755067433,-460.0,0.00021369,2]
[367337922,1750755067442,-460.0,0.00021369,2]
[367337923,1750755067453,-1404.87,0.00021369,2]
[367337924,1750755067462,-460.0,0.00021369,2]
[367337925,1750755067471,-460.0,0.00021369,2]
[367337926,1750755067481,-494.52,0.00021369,2]
[367337927,1750755067492,-567.76,0.00021369,2]
[367337928,1750755067503,-2058.09,0.00021369,2]
[367337929,1750755067513,-665.95,0.00021369,2]
[367337930,1750755067522,-600.0,0.00021369,2]
[367337931,1750755067532,-186.82,0.000214,2]
[367337932,1750755067541,-186.82056726,0.000214,2]
[367337933,1750755067550,-151.0,0.000214,4]
[367337934,1750755067560,-2782.335492,0.000214,3]
[367337935,1750755067570,-500.0,0.00021414,2]
[367337936,1750755067581,-500.0,0.00021414,2]
[367337937,1750755067595,-500.0,0.00021414,2]
[367337938,1750755067604,-500.0,0.00021414,2]
[367337939,1750755067613,-500.0,0.00021414,2]
[367337940,1750755067622,-500.0,0.00021414,2]
[367337941,1750755067631,-500.0,0.00021414,2]
[367337942,1750755067641,-500.0,0.00021414,2]
[367337943,1750755067652,-500.0,0.00021414,2]
[367337944,1750755067665,-500.0,0.00021414,2]
[367337945,1750755067674,-500.0,0.00021414,2]
[367337946,1750755067684,-600.0,0.00021414,2]
[367337947,1750755067693,-500.0,0.00021414,2]
[367337948,1750755067702,-500.0,0.00021414,2]
[367337949,1750755067711,-500.88181524,0.00021414,2]
[367337950,1750755067720,-500.0,0.00021414,2]
[367337951,1750755067730,-500.0,0.00021414,2]
[367337952,1750755067739,-500.0,0.00021414,2]
[367337953,1750755067748,-4000.0,0.00021429,4]
[367337954,1750755067757,-600.0,0.00021429,2]
[367337955,1750755067767,-500.0,0.00021449,2]
[367337956,1750755067776,-185.7667921,0.00021479,2]
[367337957,1750755067785,-159.1393301,0.00021479,2]
[367337958,1750755067794,-2782.335492,0.00021499,2]
[367337959,1750755067804,-151.0,0.000215,2]
[367337960,1750755067813,-12520.14,0.000215,2]
[367337961,1750755067823,-6750.25,0.000215,2]
[367337962,1750755067832,-82368.32,0.000215,2]
[367337963,1750755067841,-624.0,0.00021541,2]
[367337964,1750755067850,-154.00978643,0.00021551,2]
[367337965,1750755067860,-399.602447,0.00021575,2]
[367337966,1750755067870,-2079.652302,0.00021589,4]
[367337967,1750755067879,-884.70291753,0.00021589,2]
[367337968,1750755067888,-2654.37735629,0.0002159,5]
[367337969,1750755067898,-167.13498431,0.00021612,2]
[367337970,1750755067907,-2000.0,0.00021616,2]
[367337971,1750755067916,-2000.0,0.00021616,2]
[367337972,1750755067925,-1501.95348224,0.00021616,2]
[367337973,1750755067934,-2000.0,0.00021616,2]
[367337974,1750755067943,-1015.98530857,0.00021616,2]
[367337975,1750755067951,-2000.0,0.00021616,2]
[367337976,1750755067961,-2048.59,0.00021617,2]
[367337977,1750755067970,-702.83,0.00021643,2]
[367337978,1750755067979,-702.83,0.00021643,2]
[367337979,1750755067988,-460.0,0.00021643,2]
[367337980,1750755067997,-460.0,0.00021643,2]
[367337981,1750755068006,-460.0,0.00021643,2]
[367337982,1750755068016,-248.17404541,0.00021643,2]
[367337983,1750755068026,-460.0,0.00021643,2]
[367337984,1750755068035,-460.0,0.00021643,2]
[367337985,1750755068045,-460.0,0.00021643,2]
[367337986,1750755068054,-460.0,0.00021643,2]
[367337987,1750755068063,-525.25,0.00021643,2]
[367337988,1750755068073,-460.0,0.00021643,2]
[367337989,1750755068082,-306.91949085,0.00021643,2]
[367337990,1750755068092,-589.59,0.00021643,2]
[367337991,1750755068101,-639.86,0.00021643,18]
[367337992,1750755068111,-1033.48,0.00021643,2]
[367337993,1750755068121,-460.0,0.00021643,2]
[367337994,1750755068131,-701.42,0.00021643,2]
[367337995,1750755068141,-460.0,0.00021643,2]
[367337996,1750755068151,-1859.83,0.00021643,2]
[367337997,1750755068160,-460.0,0.00021643,2]
[367337998,1750755068169,-198.72,0.00021643,2]
[367337999,1750755068178,-460.0,0.00021643,2]
[367338000,1750755068188,-473.46,0.00021643,2]
[367338001,1750755068197,-460.0,0.00021643,2]
[367338002,1750755068206,-460.0,0.00021643,2]
[367338003,1750755068215,-460.0,0.00021643,2]
[367338004,1750755068224,-460.0,0.00021643,2]
[367338005,1750755068233,-460.0,0.00021643,2]
[367338006,1750755068242,-460.0,0.00021643,2]
[367338007,1750755068252,-460.0,0.00021643,2]
[367338008,1750755068261,-837.07,0.00021643,2]
[367338009,1750755068270,-1145.59,0.00021643,2]
[367338010,1750755068279,-460.0,0.00021643,2]
[367338011,1750755068288,-460.0,0.00021643,2]
[367338012,1750755068297,-460.0,0.00021643,2]
[367338013,1750755068306,-460.0,0.00021643,2]
[367338014,1750755068316,-460.0,0.00021643,2]
[367338015,1750755068328,-460.0,0.00021643,2]
[367338016,1750755068339,-2160.1,0.00021643,2]
[367338017,1750755068349,-460.0,0.00021643,2]
[367338018,1750755068359,-460.0,0.00021643,2]
[367338019,1750755068368,-460.0,0.00021643,2]
[367338020,1750755068377,-436.75,0.00021643,2]
[367338021,1750755068388,-460.0,0.00021643,2]
[367338022,1750755068399,-802.49,0.00021643,2]
[367338023,1750755068409,-3492.25,0.00021643,2]
[367338024,1750755068419,-1711.46,0.00021643,2]
[367338025,1750755068429,-1352.03,0.00021643,2]
[367338026,1750755068438,-1160.85,0.00021643,2]
[367338027,1750755068448,-460.0,0.00021643,2]
[367338028,1750755068457,-3802.86,0.00021643,2]
[367338029,1750755068466,-460.0,0.00021643,2]
[367338030,1750755068476,-460.0,0.00021643,2]
[367338031,1750755068485,-460.0,0.00021643,2]
[367338032,1750755068494,-460.0,0.00021643,2]
[367338033,1750755068503,-512.81,0.00021643,2]
[367338034,1750755068513,-1227.2,0.00021643,2]
[367338035,1750755068522,-460.0,0.00021643,2]
[367338036,1750755068531,-460.0,0.00021643,2]
[367338037,1750755068541,-1558.69,0.00021643,2]
[367338038,1750755068550,-460.0,0.00021643,2]
[367338039,1750755068560,-460.0,0.00021643,2]
[367338040,1750755068575,-890.92,0.00021643,2]
[367338041,1750755068584,-1129.31,0.00021643,2]
[367338042,1750755068713,-503.39,0.00021643,2]
[367338043,1750755068724,-3336.33,0.00021643,2]
[367338044,1750755068733,-460.0,0.00021643,2]
[367338045,1750755068743,-460.0,0.00021643,2]
[367338046,1750755068752,-460.0,0.00021643,2]
[367338047,1750755068761,-238.35219476,0.00021643,2]
[367338048,1750755068770,-3108.84,0.00021643,2]
[367338049,1750755068779,-1043.22,0.00021643,2]
[367338050,1750755068789,-2718.8,0.00021643,2]
[367338051,1750755068798,-460.0,0.00021643,2]
[367338052,1750755068807,-2297.74,0.00021643,2]
[367338053,1750755068816,-460.0,0.00021643,2]
[367338054,1750755068825,-472.84,0.00021643,2]
[367338055,1750755068835,-686.97,0.00021643,2]
[367338056,1750755068844,-460.0,0.00021643,2]
[367338057,1750755068855,-460.0,0.00021643,2]
[367338058,1750755068865,-1034.53,0.00021643,2]
[367338059,1750755068874,-460.0,0.00021643,2]
[367338060,1750755068884,-4423.11,0.00021643,2]
[367338061,1750755068895,-460.0,0.00021643,2]
[367338062,1750755068906,-460.0,0.00021643,2]
[367338063,1750755068915,-498.87,0.00021643,2]
[367338064,1750755068924,-460.0,0.00021643,2]
[367338065,1750755068934,-1356.23,0.00021643,2]
[367338066,1750755068943,-564.81,0.00021643,2]
[367338067,1750755068952,-1527.77,0.00021643,2]
[367338068,1750755068964,-516.05,0.00021643,2]
[367338069,1750755068974,-460.0,0.00021643,2]
[367338070,1750755068983,-917.06,0.00021643,2]
[367338071,1750755068993,-556.13,0.00021643,2]
[367338072,1750755069004,-460.0,0.00021643,2]
[367338073,1750755069014,-1891.95,0.00021643,2]
[367338074,1750755069023,-1048.02,0.00021643,2]
[367338075,1750755069032,-1140.59,0.00021643,2]
[367338076,1750755069043,-609.41,0.00021643,2]
[367338077,1750755069052,-3302.7,0.00021643,2]
[367338078,1750755069063,-460.0,0.00021643,2]
[367338079,1750755069073,-460.0,0.00021643,2]
[367338080,1750755069082,-1182.78,0.00021643,2]
[367338081,1750755069091,-865.91,0.00021643,2]
[367338082,1750755069101,-2811.91,0.00021643,2]
[367338083,1750755069110,-460.0,0.00021643,2]
[367338084,1750755069121,-598.75925412,0.00021643,2]
[367338085,1750755069130,-460.0,0.00021643,2]
[367338086,1750755069141,-468.72,0.00021643,2]
[367338087,1750755069151,-460.0,0.00021643,2]
[367338088,1750755069161,-1078.54,0.00021643,2]
[367338089,1750755069170,-460.0,0.00021643,2]
[367338090,1750755069180,-460.0,0.00021643,2]
[367338091,1750755069190,-1172.06,0.00021643,2]
[367338092,1750755069199,-460.0,0.00021643,2]
[367338093,1750755069209,-936.84,0.00021643,2]
[367338094,1750755069218,-483.23228062,0.00021643,2]
[367338095,1750755069229,-1147.18,0.00021643,2]
[367338096,1750755069239,-669.18,0.00021643,2]
[367338097,1750755069248,-1364.47,0.00021643,2]
[367338098,1750755069258,-460.0,0.00021643,2]
[367338099,1750755069267,-787.57,0.00021643,2]
[367338100,1750755069277,-3667.8,0.00021643,2]
[367338101,1750755069286,-1283.7,0.00021643,2]
[367338102,1750755069295,-2790.88,0.00021643,2]
[367338103,1750755069305,-1147.28,0.00021643,2]
[367338104,1750755069314,-827.6,0.00021643,2]
[367338105,1750755069323,-592.66360597,0.00021643,2]
[367338106,1750755069333,-460.0,0.00021643,2]
[367338107,1750755069342,-1404.87,0.00021643,2]
[367338108,1750755069351,-460.0,0.00021643,2]
[367338109,1750755069360,-460.0,0.00021643,2]
[367338110,1750755069369,-494.52,0.00021643,2]
[367338111,1750755069378,-567.76,0.00021643,2]
[367338112,1750755069387,-2058.09,0.00021643,2]
[367338113,1750755069396,-665.95,0.00021643,2]
[367338114,1750755069406,-2500.0,0.00021664,2]
[367338115,1750755069415,-2500.0,0.00021664,2]
[367338116,1750755069424,-2500.0,0.00021664,2]
[367338117,1750755069433,-1503.48369518,0.00021664,2]
[367338118,1750755069443,-1500.0,0.00021668,2]
[367338119,1750755069452,-1500.0,0.00021668,2]
[367338120,1750755069461,-1500.0,0.00021668,2]
[367338121,1750755069471,-1500.0,0.00021668,2]
[367338122,1750755069480,-1500.0,0.00021668,2]
[367338123,1750755069489,-1500.0,0.00021668,2]
[367338124,1750755069499,-1500.0,0.00021668,2]
[367338125,1750755069509,-1500.0,0.00021668,2]
[367338126,1750755069519,-1248.58789965,0.00021668,2]
[367338127,1750755069529,-1500.0,0.00021668,2]
[367338128,1750755069539,-1500.0,0.00021668,2]
[367338129,1750755069548,-1500.0,0.00021668,2]
[367338130,1750755069558,-1500.0,0.00021668,2]
[367338131,1750755069568,-1500.0,0.00021668,2]
[367338132,1750755069577,-1500.0,0.00021668,2]
[367338133,1750755069589,-1500.0,0.00021668,2]
[367338134,1750755069598,-1547.08637586,0.00021668,2]
[367338135,1750755069607,-160.0,0.00021674,8]
[367338136,1750755069616,-624.0,0.00021711,2]
[367338137,1750755069626,-7737.01787155,0.00021738,2]
[367338138,1750755069635,-399.602447,0.00021768,2]
[367338139,1750755069644,-365.9458251,0.00021781,2]
[367338140,1750755069655,-365.9458251,0.00021781,2]
[367338141,1750755069665,-226.8072895,0.00021781,2]
[367338142,1750755069674,-365.9458251,0.00021781,2]
[367338143,1750755069684,-157.75618943,0.00021782,2]
[367338144,1750755069694,-647.2,0.00021797,4]
[367338145,1750755069703,-2200.0,0.00021802,2]
[367338146,1750755069712,-800.603,0.00021802,2]
[367338147,1750755069722,-179.82017982,0.00021808,2]
[367338148,1750755069731,-2654.37735629,0.00021831,6]
[367338149,1750755069740,-223.0315306,0.00021838,2]
[367338150,1750755069749,-205.8,0.00021846,2]
[367338151,1750755069759,-5119.0,0.000219,2]
[367338152,1750755069769,-5119.0,0.000219,2]
[367338153,1750755069778,-5119.0,0.000219,2]
[367338154,1750755069787,-5119.0,0.000219,2]
[367338155,1750755069796,-5119.0,0.000219,2]
[367338156,1750755069805,-5119.0,0.000219,2]
[367338157,1750755069814,-5119.0,0.000219,2]
[367338158,1750755069823,-5119.0,0.000219,2]